[Event "Early-Titled-Tuesday-Blitz-April-16-2024"]
[Site "Chess.com"]
[Date "2024.04.16"]
[Round "5"]
[White "Predator0608"]
[Black "MIss_MIaMI"]
[Result "1-0"]
[WhiteElo "2568"]
[BlackElo "2365"]
[TimeControl "180+1"]
[EndTime "8:56:51 PDT"]
[Termination "Predator0608 won by resignation"]

1. f4 {[%clk 0:03:00.9]} 1... c5 {[%clk 0:02:57]} 2. Nf3 {[%clk 0:03:00.4]} 2...
e6 {[%clk 0:02:57.2]} 3. g3 {[%clk 0:02:59.3]} 3... Nc6 {[%clk 0:02:56.8]} 4.
Bg2 {[%clk 0:02:59.1]} 4... d5 {[%clk 0:02:56.1]} 5. d3 {[%clk 0:02:59.1]} 5...
Nf6 {[%clk 0:02:55.4]} 6. O-O {[%clk 0:02:59]} 6... g6 {[%clk 0:02:29.8]} 7. Qe1
{[%clk 0:02:58.1]} 7... Bg7 {[%clk 0:02:30.2]} 8. e4 {[%clk 0:02:57.9]} 8...
dxe4 {[%clk 0:02:20.6]} 9. dxe4 {[%clk 0:02:58.8]} 9... O-O {[%clk 0:02:21.3]}
10. Nc3 {[%clk 0:02:55.6]} 10... Nd4 {[%clk 0:02:19.5]} 11. Rf2 {[%clk
0:02:55.5]} 11... Ng4 {[%clk 0:02:15.7]} 12. Rd2 {[%clk 0:02:55.3]} 12... Nxf3+
{[%clk 0:02:02.9]} 13. Bxf3 {[%clk 0:02:54.3]} 13... Bd4+ {[%clk 0:02:03.2]} 14.
Kg2 {[%clk 0:02:42.7]} 14... Ne3+ {[%clk 0:01:59.8]} 15. Qxe3 {[%clk 0:02:41.5]}
15... Bxe3 {[%clk 0:02:00.7]} 16. Rxd8 {[%clk 0:02:41.4]} 16... Rxd8 {[%clk
0:02:01.6]} 17. Bxe3 {[%clk 0:02:41]} 17... b6 {[%clk 0:01:59.6]} 18. e5 {[%clk
0:02:40.2]} 18... Rb8 {[%clk 0:01:59.8]} 19. Nb5 {[%clk 0:02:40.8]} 19... a6
{[%clk 0:01:53.5]} 20. Nd6 {[%clk 0:02:38.8]} 20... Bd7 {[%clk 0:01:51.9]} 21.
Kf2 {[%clk 0:02:31.8]} 21... Kf8 {[%clk 0:01:34.3]} 22. Rd1 {[%clk 0:02:26.9]}
22... Kg7 {[%clk 0:01:27.4]} 23. Rd2 {[%clk 0:01:53.4]} 23... f6 {[%clk
0:01:25.9]} 24. exf6+ {[%clk 0:01:49.7]} 24... Kxf6 {[%clk 0:01:26.8]} 25. Ne4+
{[%clk 0:01:50.1]} 25... Kf7 {[%clk 0:01:20.3]} 26. Rd6 {[%clk 0:01:46.5]} 26...
h6 {[%clk 0:01:07]} 27. h4 {[%clk 0:01:35.6]} 27... Bb5 {[%clk 0:01:05.5]} 28.
h5 {[%clk 0:01:32.2]} 28... gxh5 {[%clk 0:01:02.2]} 29. Bxh5+ {[%clk 0:01:31.5]}
29... Ke7 {[%clk 0:01:02.7]} 30. Rd2 {[%clk 0:01:28.6]} 30... Bc4 {[%clk
0:00:53.9]} 31. a3 {[%clk 0:01:21.3]} 31... Bd5 {[%clk 0:00:52.4]} 32. Nc3
{[%clk 0:01:09.8]} 32... Bc6 {[%clk 0:00:49.5]} 33. Bf3 {[%clk 0:01:03.3]} 33...
Bd7 {[%clk 0:00:48.2]} 34. g4 {[%clk 0:01:01.8]} 34... Rg8 {[%clk 0:00:43.3]}
35. Kg3 {[%clk 0:00:52.5]} 35... a5 {[%clk 0:00:31.8]} 36. Rh2 {[%clk
0:00:49.1]} 36... Rh8 {[%clk 0:00:30.9]} 37. Ne4 {[%clk 0:00:45.6]} 37... Bc6
{[%clk 0:00:25.5]} 38. Nd2 {[%clk 0:00:43.7]} 38... Ba4 {[%clk 0:00:19.5]} 39.
Be4 {[%clk 0:00:43]} 39... Bd7 {[%clk 0:00:16.6]} 40. Nf3 {[%clk 0:00:43.4]}
40... Kf6 {[%clk 0:00:15.5]} 41. Ne5 {[%clk 0:00:43.4]} 41... Ba4 {[%clk
0:00:14.8]} 42. Bd2 {[%clk 0:00:37.6]} 42... Rbg8 {[%clk 0:00:11.4]} 43. Bc3
{[%clk 0:00:37.3]} 43... Ke7 {[%clk 0:00:10.6]} 44. Ng6+ {[%clk 0:00:37.6]}
44... Rxg6 {[%clk 0:00:11]} 45. Bxg6 {[%clk 0:00:38.5]} 45... Rg8 {[%clk
0:00:10.8]} 46. f5 {[%clk 0:00:38]} 46... exf5 {[%clk 0:00:10.7]} 47. gxf5
{[%clk 0:00:38.9]} 47... Kd6 {[%clk 0:00:09.5]} 48. Rxh6 {[%clk 0:00:39.2]}
48... Kc7 {[%clk 0:00:09.3]} 49. Kf4 {[%clk 0:00:38.4]} 49... Bc6 {[%clk
0:00:09]} 50. Rh7+ {[%clk 0:00:36.6]} 50... Kc8 {[%clk 0:00:07.8]} 51. Be5
{[%clk 0:00:36.8]} 51... Bd7 {[%clk 0:00:08.1]} 52. Bf7 {[%clk 0:00:37.1]} 52...
Rg1 {[%clk 0:00:07.4]} 53. Be6 {[%clk 0:00:37.4]} 53... Rf1+ {[%clk 0:00:07]}
54. Kg5 {[%clk 0:00:34.6]} 54... Bxe6 {[%clk 0:00:04.1]} 55. fxe6 {[%clk
0:00:35.5]} 55... Re1 {[%clk 0:00:04.5]} 56. Kf6 {[%clk 0:00:31.7]} 56... Rf1+
{[%clk 0:00:03.8]} 57. Ke7 {[%clk 0:00:31.8]} 57... Kb7 {[%clk 0:00:04.5]} 58.
Kd6+ {[%clk 0:00:30.8]} 58... Ka6 {[%clk 0:00:04.8]} 59. e7 {[%clk 0:00:31.7]}
59... Rd1+ {[%clk 0:00:05.4]} 60. Ke6 {[%clk 0:00:31.6]} 1-0

[Event "Early-Titled-Tuesday-Blitz-April-16-2024"]
[Site "Chess.com"]
[Date "2024.04.16"]
[Round "5"]
[White "MyDream003"]
[Black "lioni26"]
[Result "1-0"]
[WhiteElo "2801"]
[BlackElo "2553"]
[TimeControl "180+1"]
[EndTime "8:56:52 PDT"]
[Termination "MyDream003 won by checkmate"]

1. e4 {[%clk 0:03:00.9]} 1... e5 {[%clk 0:02:57.4]} 2. Nf3 {[%clk 0:03:01.1]}
2... Nc6 {[%clk 0:02:57]} 3. Bb5 {[%clk 0:03:01.3]} 3... a6 {[%clk 0:02:56.5]}
4. Ba4 {[%clk 0:03:01.1]} 4... d6 {[%clk 0:02:56.7]} 5. c3 {[%clk 0:02:56.2]}
5... Bd7 {[%clk 0:02:56.4]} 6. O-O {[%clk 0:02:55.6]} 6... g6 {[%clk 0:02:56.2]}
7. d4 {[%clk 0:02:55.9]} 7... Bg7 {[%clk 0:02:56.6]} 8. h3 {[%clk 0:02:52.6]}
8... Nf6 {[%clk 0:02:56.3]} 9. Re1 {[%clk 0:02:52.7]} 9... O-O {[%clk
0:02:55.7]} 10. Bg5 {[%clk 0:02:46.8]} 10... h6 {[%clk 0:02:54.3]} 11. Bh4
{[%clk 0:02:44.4]} 11... Qe8 {[%clk 0:02:53.6]} 12. Bc2 {[%clk 0:02:37.8]} 12...
Kh8 {[%clk 0:02:47.7]} 13. Nbd2 {[%clk 0:02:36.8]} 13... b5 {[%clk 0:02:46.7]}
14. Nf1 {[%clk 0:02:30.5]} 14... Nh5 {[%clk 0:02:45.7]} 15. Ne3 {[%clk
0:02:27.5]} 15... Nd8 {[%clk 0:02:21.3]} 16. a4 {[%clk 0:02:06.1]} 16... Ne6
{[%clk 0:02:18.9]} 17. axb5 {[%clk 0:02:06.1]} 17... axb5 {[%clk 0:02:19.4]} 18.
Rxa8 {[%clk 0:02:05.6]} 18... Qxa8 {[%clk 0:02:20.3]} 19. dxe5 {[%clk
0:02:04.7]} 19... Qa6 {[%clk 0:01:38.9]} 20. exd6 {[%clk 0:02:00.1]} 20... cxd6
{[%clk 0:01:39]} 21. Be7 {[%clk 0:01:58.3]} 21... Re8 {[%clk 0:01:39.2]} 22.
Bxd6 {[%clk 0:01:50.9]} 22... Bc6 {[%clk 0:01:34.9]} 23. Ne5 {[%clk 0:01:44]}
23... Kg8 {[%clk 0:01:25.8]} 24. Nxc6 {[%clk 0:01:38.9]} 24... Qxc6 {[%clk
0:01:26.7]} 25. Qd5 {[%clk 0:01:38.7]} 25... Qb6 {[%clk 0:01:24.5]} 26. e5
{[%clk 0:01:15.1]} 26... Rd8 {[%clk 0:01:19.2]} 27. Rd1 {[%clk 0:01:01.5]} 27...
b4 {[%clk 0:01:14.4]} 28. cxb4 {[%clk 0:00:59]} 28... Nhf4 {[%clk 0:01:09.3]}
29. Qa5 {[%clk 0:00:52.5]} 29... Qc6 {[%clk 0:01:04.8]} 30. b5 {[%clk
0:00:44.7]} 30... Qb7 {[%clk 0:01:04]} 31. Qa6 {[%clk 0:00:42.7]} 31... Qd7
{[%clk 0:00:50.7]} 32. Qc6 {[%clk 0:00:35.4]} 32... Qa7 {[%clk 0:00:42]} 33. b6
{[%clk 0:00:33]} 33... Qa6 {[%clk 0:00:41.2]} 34. Kh1 {[%clk 0:00:18.9]} 34...
Qe2 {[%clk 0:00:26.5]} 35. Qf3 {[%clk 0:00:15.9]} 35... Qb5 {[%clk 0:00:20.5]}
36. b7 {[%clk 0:00:15.7]} 36... g5 {[%clk 0:00:19.8]} 37. b8=Q {[%clk
0:00:14.2]} 37... Rxb8 {[%clk 0:00:20.1]} 38. Bxb8 {[%clk 0:00:14.9]} 38... Qxb8
{[%clk 0:00:20.8]} 39. Ng4 {[%clk 0:00:14.8]} 39... Qxb2 {[%clk 0:00:20.1]} 40.
Bf5 {[%clk 0:00:14.5]} 40... Nd4 {[%clk 0:00:18.4]} 41. Qa8+ {[%clk 0:00:13.5]}
41... Bf8 {[%clk 0:00:18.5]} 42. Qe4 {[%clk 0:00:09.2]} 42... Nde2 {[%clk
0:00:07.1]} 43. e6 {[%clk 0:00:07.5]} 43... Qb3 {[%clk 0:00:04.9]} 44. exf7+
{[%clk 0:00:07.3]} 44... Kg7 {[%clk 0:00:04.1]} 45. Qe5+ {[%clk 0:00:05.3]}
45... Kxf7 {[%clk 0:00:03.5]} 46. Rd7+ {[%clk 0:00:05.5]} 46... Kg8 {[%clk
0:00:03.3]} 47. Bh7# {[%clk 0:00:05.7]} 1-0

[Event "Early-Titled-Tuesday-Blitz-April-16-2024"]
[Site "Chess.com"]
[Date "2024.04.16"]
[Round "5"]
[White "chess123456s"]
[Black "Hudijegszid"]
[Result "1-0"]
[WhiteElo "2606"]
[BlackElo "2456"]
[TimeControl "180+1"]
[EndTime "8:56:52 PDT"]
[Termination "chess123456s won by resignation"]

1. e4 {[%clk 0:03:00.5]} 1... c6 {[%clk 0:02:55.8]} 2. d4 {[%clk 0:02:59.3]}
2... d5 {[%clk 0:02:56.7]} 3. exd5 {[%clk 0:02:56.8]} 3... cxd5 {[%clk
0:02:57.6]} 4. Bd3 {[%clk 0:02:57.2]} 4... Nc6 {[%clk 0:02:50.4]} 5. c3 {[%clk
0:02:57.1]} 5... Nf6 {[%clk 0:02:50.9]} 6. Bf4 {[%clk 0:02:56.7]} 6... Bg4
{[%clk 0:02:51]} 7. Qb3 {[%clk 0:02:56.8]} 7... Qd7 {[%clk 0:02:51.3]} 8. Nd2
{[%clk 0:02:56.6]} 8... e6 {[%clk 0:02:51.7]} 9. Ngf3 {[%clk 0:02:56.9]} 9...
Bd6 {[%clk 0:02:52.1]} 10. Bxd6 {[%clk 0:02:57.2]} 10... Qxd6 {[%clk 0:02:52.6]}
11. O-O {[%clk 0:02:57.7]} 11... O-O {[%clk 0:02:52.9]} 12. Rae1 {[%clk
0:02:58.3]} 12... Bxf3 {[%clk 0:02:53.3]} 13. Nxf3 {[%clk 0:02:58.2]} 13... b5
{[%clk 0:02:53]} 14. Bxb5 {[%clk 0:02:51.1]} 14... Rfb8 {[%clk 0:02:52.7]} 15.
Qa4 {[%clk 0:02:50.6]} 15... Ne7 {[%clk 0:02:52.6]} 16. Re2 {[%clk 0:02:48.1]}
16... a6 {[%clk 0:02:39.2]} 17. Bd3 {[%clk 0:02:46.9]} 17... Rb6 {[%clk
0:02:38.4]} 18. b4 {[%clk 0:02:33.2]} 18... Ng6 {[%clk 0:02:35.9]} 19. Bxg6
{[%clk 0:02:32]} 19... hxg6 {[%clk 0:02:35.1]} 20. Ne5 {[%clk 0:02:29.3]} 20...
Ne4 {[%clk 0:02:35.2]} 21. Rxe4 {[%clk 0:02:21.5]} 21... dxe4 {[%clk 0:02:31.4]}
22. Nc4 {[%clk 0:02:21.9]} 22... Qc6 {[%clk 0:02:27.6]} 23. Nxb6 {[%clk
0:02:22.2]} 23... Qxb6 {[%clk 0:02:28.5]} 24. Re1 {[%clk 0:02:21.8]} 24... f5
{[%clk 0:02:20.9]} 25. Qb3 {[%clk 0:02:20.1]} 25... Rc8 {[%clk 0:02:17.7]} 26.
h3 {[%clk 0:02:19.2]} 26... Kf7 {[%clk 0:02:17]} 27. d5 {[%clk 0:02:18]} 27...
exd5 {[%clk 0:02:10.6]} 28. Qxd5+ {[%clk 0:02:18.9]} 28... Qe6 {[%clk
0:02:11.2]} 29. Qd4 {[%clk 0:02:12.7]} 29... Rc4 {[%clk 0:02:09.5]} 30. Qa7+
{[%clk 0:02:10.1]} 30... Kf6 {[%clk 0:02:07.8]} 31. Rc1 {[%clk 0:02:01.3]} 31...
Qc6 {[%clk 0:02:05.4]} 32. Qe3 {[%clk 0:01:52.7]} 32... g5 {[%clk 0:02:05.4]}
33. g3 {[%clk 0:01:42.2]} 33... Qd6 {[%clk 0:02:02.7]} 34. Qe2 {[%clk
0:01:37.9]} 34... Qc6 {[%clk 0:01:33.9]} 35. Qd2 {[%clk 0:01:31.4]} 35... Qc7
{[%clk 0:01:22.3]} 36. Qd5 {[%clk 0:01:18]} 36... f4 {[%clk 0:01:09]} 37. g4
{[%clk 0:01:13.7]} 37... e3 {[%clk 0:01:02.1]} 38. Qf5+ {[%clk 0:01:11.3]} 38...
Ke7 {[%clk 0:00:58]} 39. Qxg5+ {[%clk 0:01:12.2]} 39... Kf8 {[%clk 0:00:35.9]}
40. fxe3 {[%clk 0:01:08.2]} 40... fxe3 {[%clk 0:00:26.9]} 41. Qxe3 {[%clk
0:01:04.3]} 41... Kg8 {[%clk 0:00:20.6]} 42. a4 {[%clk 0:00:59.2]} 42... Rf4
{[%clk 0:00:15.5]} 43. Re1 {[%clk 0:00:56.9]} 43... Rf8 {[%clk 0:00:13.5]} 44.
b5 {[%clk 0:00:55.9]} 44... axb5 {[%clk 0:00:12.3]} 45. axb5 {[%clk 0:00:56.8]}
45... Kh8 {[%clk 0:00:09.3]} 46. b6 {[%clk 0:00:55.7]} 46... Qc6 {[%clk
0:00:09.2]} 47. Re2 {[%clk 0:00:37.2]} 47... Rb8 {[%clk 0:00:09]} 48. Rb2 {[%clk
0:00:33.4]} 48... Re8 {[%clk 0:00:08.8]} 49. Qf2 {[%clk 0:00:25.7]} 49... Qxc3
{[%clk 0:00:05.4]} 50. b7 {[%clk 0:00:19.7]} 50... Re1+ {[%clk 0:00:05]} 51. Kg2
{[%clk 0:00:19.5]} 51... Qc6+ {[%clk 0:00:05.2]} 52. Qf3 {[%clk 0:00:19.9]}
52... Rg1+ {[%clk 0:00:02.1]} 53. Kxg1 {[%clk 0:00:20.4]} 53... Qxf3 {[%clk
0:00:02.8]} 54. b8=Q+ {[%clk 0:00:21]} 54... Kh7 {[%clk 0:00:03.5]} 55. Qb3
{[%clk 0:00:20.4]} 55... Qc6 {[%clk 0:00:01.3]} 56. Qc2+ {[%clk 0:00:20.8]}
56... Qxc2 {[%clk 0:00:01.9]} 57. Rxc2 {[%clk 0:00:21.7]} 1-0

[Event "Early-Titled-Tuesday-Blitz-April-16-2024"]
[Site "Chess.com"]
[Date "2024.04.16"]
[Round "5"]
[White "NikitaShnadrygin"]
[Black "SpeedofLight0"]
[Result "0-1"]
[WhiteElo "2735"]
[BlackElo "3078"]
[TimeControl "180+1"]
[EndTime "8:56:53 PDT"]
[Termination "SpeedofLight0 won by resignation"]

1. e4 {[%clk 0:03:00.9]} 1... Nc6 {[%clk 0:02:59.7]} 2. Nf3 {[%clk 0:02:59.6]}
2... d6 {[%clk 0:02:59.8]} 3. d4 {[%clk 0:02:55.9]} 3... Nf6 {[%clk 0:02:59.9]}
4. Nc3 {[%clk 0:02:53.2]} 4... g6 {[%clk 0:03:00.4]} 5. h3 {[%clk 0:02:44.1]}
5... Bg7 {[%clk 0:03:00.4]} 6. Bb5 {[%clk 0:02:43.6]} 6... a6 {[%clk 0:02:59.7]}
7. Bxc6+ {[%clk 0:02:43.2]} 7... bxc6 {[%clk 0:03:00.6]} 8. O-O {[%clk
0:02:43.4]} 8... O-O {[%clk 0:03:01]} 9. e5 {[%clk 0:02:43.2]} 9... Nd7 {[%clk
0:02:59.4]} 10. Qe2 {[%clk 0:02:43]} 10... Nb6 {[%clk 0:02:57.9]} 11. Re1 {[%clk
0:02:36.7]} 11... a5 {[%clk 0:02:57.7]} 12. Bg5 {[%clk 0:02:33.6]} 12... f6
{[%clk 0:02:53.5]} 13. exf6 {[%clk 0:02:16.9]} 13... exf6 {[%clk 0:02:54.4]} 14.
Bh4 {[%clk 0:02:13.2]} 14... Qd7 {[%clk 0:02:26.1]} 15. a4 {[%clk 0:02:02.8]}
15... Ba6 {[%clk 0:02:23]} 16. Qd2 {[%clk 0:02:02.6]} 16... g5 {[%clk
0:02:17.3]} 17. Bg3 {[%clk 0:02:01.2]} 17... h5 {[%clk 0:02:18]} 18. b3 {[%clk
0:01:54.1]} 18... Rf7 {[%clk 0:01:46.6]} 19. Ne4 {[%clk 0:01:42.6]} 19... Bb7
{[%clk 0:01:34.2]} 20. c4 {[%clk 0:01:35]} 20... Qf5 {[%clk 0:01:33.8]} 21. c5
{[%clk 0:01:22.4]} 21... d5 {[%clk 0:01:08.4]} 22. Nexg5 {[%clk 0:01:07]} 22...
fxg5 {[%clk 0:01:05.6]} 23. cxb6 {[%clk 0:01:07.4]} 23... cxb6 {[%clk
0:01:01.9]} 24. Be5 {[%clk 0:01:00.6]} 24... g4 {[%clk 0:00:58.8]} 25. Nh4
{[%clk 0:00:55.8]} 25... Qh7 {[%clk 0:00:57.1]} 26. Qg5 {[%clk 0:00:51.1]} 26...
Qh6 {[%clk 0:00:50.7]} 27. Qg6 {[%clk 0:00:35]} 27... Qxg6 {[%clk 0:00:41.8]}
28. Nxg6 {[%clk 0:00:35.1]} 28... Bh6 {[%clk 0:00:42.5]} 29. hxg4 {[%clk
0:00:22.5]} 29... hxg4 {[%clk 0:00:43.4]} 30. Bg3 {[%clk 0:00:22.8]} 30... Kh7
{[%clk 0:00:32.5]} 31. Re6 {[%clk 0:00:18.3]} 31... c5 {[%clk 0:00:17]} 32. Ne5
{[%clk 0:00:18]} 32... Rg7 {[%clk 0:00:17.2]} 33. Kh2 {[%clk 0:00:15.4]} 33...
cxd4 {[%clk 0:00:11.9]} 34. Rh1 {[%clk 0:00:14.9]} 34... Bg5 {[%clk 0:00:08.6]}
35. Kg1+ {[%clk 0:00:11.1]} 35... Kg8 {[%clk 0:00:08.7]} 36. Rxb6 {[%clk
0:00:11.5]} 36... Rc8 {[%clk 0:00:07.9]} 37. Rh5 {[%clk 0:00:09.7]} 37... Rc1+
{[%clk 0:00:06]} 38. Kh2 {[%clk 0:00:10]} 38... Bc8 {[%clk 0:00:06.9]} 39. Rb8
{[%clk 0:00:09.1]} 39... Rh7 {[%clk 0:00:05.7]} 40. Rxh7 {[%clk 0:00:08.9]}
40... Kxh7 {[%clk 0:00:06.6]} 41. Rb5 {[%clk 0:00:07.9]} 41... Be6 {[%clk
0:00:03.4]} 42. Rxa5 {[%clk 0:00:08.3]} 42... Rc3 {[%clk 0:00:03.8]} 43. Ra7+
{[%clk 0:00:08.9]} 43... Kg8 {[%clk 0:00:03.5]} 44. Ra8+ {[%clk 0:00:08.9]}
44... Kg7 {[%clk 0:00:03.9]} 45. Re8 {[%clk 0:00:09]} 45... Kf6 {[%clk
0:00:03.7]} 46. f3 {[%clk 0:00:06.2]} 46... gxf3 {[%clk 0:00:03.7]} 47. Nxf3
{[%clk 0:00:07.1]} 47... Be3 {[%clk 0:00:03.5]} 48. Bh4+ {[%clk 0:00:06.8]}
48... Kf5 {[%clk 0:00:02.9]} 49. Rf8+ {[%clk 0:00:07.4]} 49... Ke4 {[%clk
0:00:03.4]} 50. Re8 {[%clk 0:00:07.8]} 50... Kf5 {[%clk 0:00:03.5]} 51. Rf8+
{[%clk 0:00:07.6]} 51... Kg4 {[%clk 0:00:03]} 52. Rf6 {[%clk 0:00:06.7]} 52...
Bf4+ {[%clk 0:00:03.1]} 53. Bg3 {[%clk 0:00:06.1]} 53... Bxg3+ {[%clk
0:00:03.2]} 54. Kg1 {[%clk 0:00:05.5]} 54... Rc1+ {[%clk 0:00:03.5]} 0-1

[Event "Early-Titled-Tuesday-Blitz-April-16-2024"]
[Site "Chess.com"]
[Date "2024.04.16"]
[Round "5"]
[White "El_Matador12"]
[Black "kripri"]
[Result "0-1"]
[WhiteElo "2542"]
[BlackElo "2352"]
[TimeControl "180+1"]
[EndTime "8:56:55 PDT"]
[Termination "kripri won on time"]

1. d4 {[%clk 0:02:48.2]} 1... Nf6 {[%clk 0:02:59.1]} 2. Bg5 {[%clk 0:02:42.7]}
2... e6 {[%clk 0:02:48.9]} 3. Nd2 {[%clk 0:02:35.8]} 3... d5 {[%clk 0:02:47.7]}
4. e3 {[%clk 0:02:17.3]} 4... Be7 {[%clk 0:02:44]} 5. Bd3 {[%clk 0:02:16.5]}
5... O-O {[%clk 0:02:44.2]} 6. f4 {[%clk 0:02:15.5]} 6... h6 {[%clk 0:02:42.9]}
7. Bh4 {[%clk 0:02:15.3]} 7... c5 {[%clk 0:02:42.6]} 8. c3 {[%clk 0:02:11.7]}
8... b6 {[%clk 0:02:41.5]} 9. Ngf3 {[%clk 0:02:10.9]} 9... Ba6 {[%clk
0:02:40.2]} 10. Qe2 {[%clk 0:02:08.8]} 10... Bxd3 {[%clk 0:02:39.7]} 11. Qxd3
{[%clk 0:02:08.5]} 11... Nc6 {[%clk 0:02:40.3]} 12. O-O {[%clk 0:02:07.8]} 12...
Ng4 {[%clk 0:02:19.8]} 13. Bxe7 {[%clk 0:02:05.9]} 13... Qxe7 {[%clk 0:02:18]}
14. h3 {[%clk 0:02:03.2]} 14... Nf6 {[%clk 0:02:16.8]} 15. Ne5 {[%clk
0:02:03.6]} 15... Rac8 {[%clk 0:02:07.8]} 16. Rae1 {[%clk 0:02:00.3]} 16... Rfd8
{[%clk 0:01:56.9]} 17. g4 {[%clk 0:01:58]} 17... Nd7 {[%clk 0:01:33]} 18. Kg2
{[%clk 0:01:42.4]} 18... Nf8 {[%clk 0:01:21.1]} 19. Ndf3 {[%clk 0:01:32.8]}
19... Qc7 {[%clk 0:00:52.6]} 20. f5 {[%clk 0:01:26.5]} 20... Nxe5 {[%clk
0:00:44.6]} 21. dxe5 {[%clk 0:01:26.5]} 21... Nd7 {[%clk 0:00:38.4]} 22. f6
{[%clk 0:01:25.5]} 22... Nxe5 {[%clk 0:00:36]} 23. Nxe5 {[%clk 0:01:24.6]} 23...
Qxe5 {[%clk 0:00:35.4]} 24. fxg7 {[%clk 0:01:22.9]} 24... Kxg7 {[%clk
0:00:33.2]} 25. Rf4 {[%clk 0:01:22.3]} 25... Rd7 {[%clk 0:00:25.9]} 26. Ref1
{[%clk 0:01:21.7]} 26... Rcd8 {[%clk 0:00:26]} 27. Qe2 {[%clk 0:01:19.2]} 27...
d4 {[%clk 0:00:20.4]} 28. cxd4 {[%clk 0:01:19.1]} 28... cxd4 {[%clk 0:00:20.7]}
29. Qf3 {[%clk 0:01:16.7]} 29... Rf8 {[%clk 0:00:14.5]} 30. exd4 {[%clk
0:01:11.8]} 30... Qd5 {[%clk 0:00:14.8]} 31. Re4 {[%clk 0:01:07.6]} 31... Rfd8
{[%clk 0:00:13.9]} 32. Qf6+ {[%clk 0:01:04.4]} 32... Kh7 {[%clk 0:00:14.4]} 33.
Rf4 {[%clk 0:00:58.8]} 33... Rc8 {[%clk 0:00:14.2]} 34. Kg3 {[%clk 0:00:57]}
34... Rc2 {[%clk 0:00:12.9]} 35. Re5 {[%clk 0:00:43.5]} 35... Qc4 {[%clk
0:00:08]} 36. Rh5 {[%clk 0:00:37.9]} 36... Qd3+ {[%clk 0:00:06.4]} 37. Kh4
{[%clk 0:00:36.9]} 37... Qg6 {[%clk 0:00:07.1]} 38. Qxg6+ {[%clk 0:00:23.3]}
38... fxg6 {[%clk 0:00:08]} 39. Rb5 {[%clk 0:00:17]} 39... g5+ {[%clk
0:00:08.4]} 40. Rxg5 {[%clk 0:00:14.7]} 40... hxg5+ {[%clk 0:00:09.3]} 41. Kxg5
{[%clk 0:00:14]} 41... Rxb2 {[%clk 0:00:09.9]} 42. h4 {[%clk 0:00:10.8]} 42...
Rxa2 {[%clk 0:00:10.4]} 43. h5 {[%clk 0:00:08]} 43... Ra5+ {[%clk 0:00:11]} 44.
Kf6 {[%clk 0:00:07.9]} 44... Rad5 {[%clk 0:00:11.5]} 45. g5 {[%clk 0:00:05.1]}
45... Rxd4 {[%clk 0:00:11.8]} 46. g6+ {[%clk 0:00:03]} 46... Kg8 {[%clk
0:00:11.5]} 47. Rf1 {[%clk 0:00:01.2]} 47... Rd8 {[%clk 0:00:10.8]} 0-1

[Event "Early-Titled-Tuesday-Blitz-April-16-2024"]
[Site "Chess.com"]
[Date "2024.04.16"]
[Round "5"]
[White "ilqar_74"]
[Black "TERMINATOR_PC"]
[Result "0-1"]
[WhiteElo "2778"]
[BlackElo "2603"]
[TimeControl "180+1"]
[EndTime "8:56:57 PDT"]
[Termination "TERMINATOR_PC won by resignation"]

1. e4 {[%clk 0:03:00.9]} 1... e5 {[%clk 0:02:14.7]} 2. Nf3 {[%clk 0:03:00.8]}
2... Nc6 {[%clk 0:02:14.5]} 3. Bb5 {[%clk 0:03:01.4]} 3... g6 {[%clk 0:02:12.9]}
4. c3 {[%clk 0:02:58.8]} 4... Bg7 {[%clk 0:02:13.4]} 5. d4 {[%clk 0:02:59.4]}
5... a6 {[%clk 0:02:13.9]} 6. Ba4 {[%clk 0:02:59]} 6... exd4 {[%clk 0:02:13.7]}
7. cxd4 {[%clk 0:02:59.9]} 7... b5 {[%clk 0:02:11.6]} 8. Bc2 {[%clk 0:02:59.7]}
8... d6 {[%clk 0:02:10.3]} 9. h3 {[%clk 0:02:57.6]} 9... Nge7 {[%clk 0:02:07.9]}
10. O-O {[%clk 0:02:57.6]} 10... O-O {[%clk 0:02:08.2]} 11. a4 {[%clk
0:02:57.2]} 11... Bb7 {[%clk 0:02:04.8]} 12. Nc3 {[%clk 0:02:57.1]} 12... b4
{[%clk 0:02:03.3]} 13. Ne2 {[%clk 0:02:54.3]} 13... Na5 {[%clk 0:02:02.6]} 14.
b3 {[%clk 0:02:53.1]} 14... c5 {[%clk 0:02:00.7]} 15. Rb1 {[%clk 0:02:49.6]}
15... cxd4 {[%clk 0:01:59]} 16. Nexd4 {[%clk 0:02:50.2]} 16... Rc8 {[%clk
0:01:56.2]} 17. Bb2 {[%clk 0:02:50.2]} 17... Re8 {[%clk 0:01:53]} 18. Qd2 {[%clk
0:02:45.1]} 18... d5 {[%clk 0:01:51.6]} 19. e5 {[%clk 0:02:43.4]} 19... Nec6
{[%clk 0:01:48.2]} 20. Nxc6 {[%clk 0:02:43.1]} 20... Nxc6 {[%clk 0:01:47.2]} 21.
Rfe1 {[%clk 0:02:39.4]} 21... d4 {[%clk 0:01:40.4]} 22. Be4 {[%clk 0:02:37.1]}
22... Qd7 {[%clk 0:01:30.6]} 23. Bxc6 {[%clk 0:02:13.7]} 23... Bxc6 {[%clk
0:01:28.4]} 24. Qxd4 {[%clk 0:02:09.5]} 24... Qf5 {[%clk 0:01:21.4]} 25. Nh4
{[%clk 0:02:03]} 25... Qg5 {[%clk 0:01:08.6]} 26. Qg4 {[%clk 0:01:38.6]} 26...
Qxg4 {[%clk 0:01:01.7]} 27. hxg4 {[%clk 0:01:39.5]} 27... Bd5 {[%clk 0:01:02.3]}
28. Bd4 {[%clk 0:01:39.3]} 28... Be6 {[%clk 0:00:50.7]} 29. g5 {[%clk
0:01:34.7]} 29... Red8 {[%clk 0:00:47.8]} 30. Red1 {[%clk 0:01:33.8]} 30... Rd5
{[%clk 0:00:40.9]} 31. Be3 {[%clk 0:01:01.1]} 31... Rxd1+ {[%clk 0:00:34.8]} 32.
Rxd1 {[%clk 0:01:02]} 32... Bxb3 {[%clk 0:00:32.2]} 33. Rb1 {[%clk 0:01:02.4]}
33... Bxa4 {[%clk 0:00:10.4]} 34. Rxb4 {[%clk 0:01:02.3]} 34... Bc6 {[%clk
0:00:09.7]} 35. f4 {[%clk 0:01:01.3]} 35... a5 {[%clk 0:00:08.1]} 36. Rb6 {[%clk
0:01:01.3]} 36... a4 {[%clk 0:00:07.9]} 37. Ra6 {[%clk 0:01:01.6]} 37... Bf8
{[%clk 0:00:05.7]} 38. Nf3 {[%clk 0:01:00.9]} 38... a3 {[%clk 0:00:04.7]} 39.
Nd4 {[%clk 0:00:59]} 39... Bd5 {[%clk 0:00:01.2]} 40. Nb5 {[%clk 0:00:59.2]}
40... a2 {[%clk 0:00:01.8]} 41. Bd4 {[%clk 0:00:58.1]} 41... Bc4 {[%clk
0:00:01.9]} 42. e6 {[%clk 0:00:47.9]} 42... Bxb5 {[%clk 0:00:02.5]} 43. exf7+
{[%clk 0:00:48.2]} 43... Kxf7 {[%clk 0:00:02.9]} 44. Ra7+ {[%clk 0:00:44.8]}
44... Ke6 {[%clk 0:00:02.9]} 45. Rxa2 {[%clk 0:00:45.7]} 45... Bc4 {[%clk
0:00:03]} 46. Ra7 {[%clk 0:00:43.9]} 46... Kd5 {[%clk 0:00:03.6]} 47. Rd7+
{[%clk 0:00:42.7]} 47... Bd6 {[%clk 0:00:03.8]} 48. Be5 {[%clk 0:00:42.2]} 48...
Rc6 {[%clk 0:00:04.5]} 49. Bxd6 {[%clk 0:00:40.6]} 49... Rxd6 {[%clk 0:00:05.4]}
50. Rxh7 {[%clk 0:00:41.3]} 50... Ke4 {[%clk 0:00:06]} 51. Rh4 {[%clk
0:00:40.8]} 51... Kf5 {[%clk 0:00:06.2]} 52. Kf2 {[%clk 0:00:40.3]} 52... Rd2+
{[%clk 0:00:06.5]} 53. Kg1 {[%clk 0:00:30.2]} 53... Bd5 {[%clk 0:00:06.5]} 54.
Rh2 {[%clk 0:00:23.4]} 54... Kxf4 {[%clk 0:00:06.8]} 55. g3+ {[%clk 0:00:21.7]}
55... Ke3 {[%clk 0:00:06.6]} 56. Rxd2 {[%clk 0:00:18.1]} 56... Kxd2 {[%clk
0:00:07.5]} 57. Kf2 {[%clk 0:00:18.8]} 57... Kd3 {[%clk 0:00:08.2]} 58. g4
{[%clk 0:00:19.5]} 58... Ke4 {[%clk 0:00:08.8]} 59. Kg3 {[%clk 0:00:20.2]} 59...
Be6 {[%clk 0:00:09.1]} 60. Kh3 {[%clk 0:00:20.1]} 60... Kf4 {[%clk 0:00:09.9]}
61. Kh4 {[%clk 0:00:20.7]} 61... Bf7 {[%clk 0:00:07.8]} 0-1